Workbook

Sheet OVERVIEW
A1: 1 | B1: Designed to illustrate the energy and A/S pricing results with RTC under A/S surplus and shortage conditions by decomposing the current ORDC
B2: into a reserve demand curve for each A/S
A3: 2 | B3: Assumptions
C4: VOLL = $9,000
C5: Offer Cap = $2,000
C6: Max Reserve Demand Curve Value = $7000.99
C7: No Congestion
C8: Generators available from 0 to HSL for Energy, available in quantities offered for each A/S
C9: All RRS provided from generators for the purpose of this example
A10: 3 | B10: A/S Demand Curves
C11: Designed to approximate the 2017 Summer Peak A/S requirements (URS = 270, RRS = 2,300, NSRS = 1,375)
C12: Simulating a different time period would require decomposing the applicable ORDC into the individual A/S product demand curves
C13: NSRS represented as SOR (Spinning Online Reserves from the whitepaper, basically online NSRS)
C14: 170 MW of URS and 1,830 MW of RRS are priced at $7,000.99
C15: Approx 100 MW of URS and 100 MW of RRS are priced at values that approximate the steps of the CURRENT PBPC
C16: The remaining RRS is priced at values that approximate the existing ORDC from 1,930 to 2,300 MW
C17: The maximum value on the SOR demand curve is $1,425 and extends for 3,000 MW (beyond the 1,375 MW requirement)
C18: Tab 'Reserve Demand Curves CHT' shows charts with the resulting individual and aggregate A/S demand curves
A19: 4 | B19: Running a Case
C20: G1 represents the sum of 50,000 MW of infra-marginal generation
C21: G2-G8 represent online generation with increasing energy offers and identical A/S offer quantities
C22: G9 represents a quick-start unit that can only provide energy or SOR
C23: There is a field for a Capacity Offer Price for each reserve that is set to $0 in these examples
C24: In the optimization, A/S shortages are represented as a cost
C25: The original excel sheet has been modified to only have 1 case that the user can modify.
C26: Tab 'Optimization Engine' contains the inputs and solution of the SOLVER Linear Program
C27: Tab 'Results Summary' contains tabular and graphical summaries of the SOLVER Linear Program result for the case run in the Optimization Engine tab
C28: Sensitivity Report and Answer Report contain the raw values from the SOLVER. The prices are copied from the results to the Optimizaiton Engine and Results Summary tabs

Sheet Reserve Demand Curves Example
A1: Note: This tab is only one example of a potential example AS demand curve.
A3: 0 | B3: 0 | C3: 7000.99
A4: 170 | B4: =A4+B3 -> 170 | C4: 7000.99
A5: 1830 | B5: =A5+B4 -> 2000 | C5: 7000.99
A6: 10 | B6: =A6+B5 -> 2010 | C6: 4500
A7: 100 | B7: 2110 | C7: 4500
A8: 15 | B8: 2125 | C8: 3500
A9: 100 | B9: 2225 | C9: 3500
A10: 15 | B10: 2240 | C10: 2500
A11: 55 | B11: 2295 | C11: 2500
A12: 15 | B12: 2310 | C12: 1500
A13: 55 | B13: 2365 | C13: 1500
A14: 375 | B14: 2740 | C14: 1425
A15: 15 | B15: 2755 | C15: 1000
A16: 55 | B16: 2810 | C16: 1000
A17: 15 | B17: 2825 | C17: 500
A18: 55 | B18: 2880 | C18: 500
A19: 375 | B19: 3255 | C19: 422
A20: 15 | B20: 3270 | C20: 250
A21: 50 | B21: 3320 | C21: 250
A22: 375 | B22: 3695 | C22: 139
A23: 375 | B23: 4070 | C23: 46
A24: 375 | B24: 4445 | C24: 13
A25: 375 | B25: 4820 | C25: 3
A26: 375 | B26: 5195 | C26: 0.6
A27: 375 | B27: 5570 | C27: 0.1
B29: 0 | C29: 7000.99
A30: 170 | B30: =A30 -> 170 | C30: 7000.99
A31: 10 | B31: =B30+A31 -> 180 | C31: 4500
A32: 15 | B32: 195 | C32: 3500
A33: 15 | B33: 210 | C33: 2500
A34: 15 | B34: 225 | C34: 1500
A35: 15 | B35: 240 | C35: 1000
A36: 15 | B36: 255 | C36: 500
A37: 15 | B37: 270 | C37: 250
B39: 0 | C39: 7000.99
A40: 1830 | B40: =A40 -> 1830 | C40: 7000.99
A41: 100 | B41: =B40+A41 -> 1930 | C41: 4500
A42: 100 | B42: 2030 | C42: 3500
A43: 55 | B43: 2085 | C43: 2500
A44: 55 | B44: 2140 | C44: 1500
A45: 55 | B45: 2195 | C45: 1000
A46: 55 | B46: 2250 | C46: 500
A47: 50 | B47: 2300 | C47: 250
B49: 0 | C49: 1425
A50: 375.000001 | B50: =A50 -> 375.000001 | C50: 1425
A51: 375 | B51: =B50+A51 -> 750.000001 | C51: 422
A52: 375 | B52: 1125.000001 | C52: 139
A53: 375 | B53: 1500.000001 | C53: 46
A54: 375 | B54: 1875.000001 | C54: 13
A55: 375 | B55: 2250.000001 | C55: 3
A56: 375 | B56: 2625.000001 | C56: 0.6
A57: 375 | B57: 3000.000001 | C57: 0.1

Sheet Optimization Engine
A1: Modify blue cells and click 'Solve' to view results. White cells should not be modified. | C1: Energy Offers and Awards | H1: URS Offers and Awards | M1: RRS Offers and Awards | R1: SOR Offers and Awards | W1: Total Awarded Capacity
B2: Generator | C2: Offer Qty | D2: Offer Price | E2: Awarded Qty | F2: Energy Cost | H2: Offer Qty | I2: Offer Price | J2: Awarded Qty | K2: URS Cost | M2: Offer Qty | N2: Offer Price | O2: Awarded Qty | P2: RRS Cost | R2: Offer Qty | S2: Offer Price | T2: Awarded Qty | U2: SOR Cost
B3: Rest of System | C3: 50000 | D3: 25 | E3: 50000 | F3: =E3*D3 -> 1250000 | H3: 50 | I3: 0 | J3: 0 | K3: =J3*I3 -> 0 | M3: 500 | N3: 0 | O3: 0 | P3: =O3*N3 -> 0 | R3: 50000 | S3: 0 | T3: 0 | U3: =T3*S3 -> 0 | W3: =E3+J3+O3+T3 -> 50000
B4: G2 | C4: 1000 | D4: 30 | E4: 1000 | F4: =E4*D4 -> 30000 | H4: 50 | I4: 0 | J4: 0 | K4: =J4*I4 -> 0 | M4: 500 | N4: 0 | O4: 0 | P4: =O4*N4 -> 0 | R4: 1000 | S4: 0 | T4: 0 | U4: =T4*S4 -> 0 | W4: =E4+J4+O4+T4 -> 1000
B5: G3 | C5: 1000 | D5: 35 | E5: 980 | F5: 34300 | H5: 50 | I5: 0 | J5: 20 | K5: 0 | M5: 500 | N5: 0 | O5: 0 | P5: 0 | R5: 1000 | S5: 0 | T5: 0 | U5: 0 | W5: 1000
B6: G4 | C6: 1000 | D6: 40 | E6: 20 | F6: 800 | H6: 50 | I6: 0 | J6: 50 | K6: 0 | M6: 500 | N6: 0 | O6: 500 | P6: 0 | R6: 1000 | S6: 0 | T6: 430 | U6: 0 | W6: 1000
B7: G5 | C7: 1000 | D7: 45 | E7: 0 | F7: 0 | H7: 50 | I7: 0 | J7: 50 | K7: 0 | M7: 500 | N7: 0 | O7: 500 | P7: 0 | R7: 1000 | S7: 0 | T7: 450 | U7: 0 | W7: 1000
B8: G6 | C8: 1000 | D8: 50 | E8: 0 | F8: 0 | H8: 50 | I8: 0 | J8: 50 | K8: 0 | M8: 500 | N8: 0 | O8: 500 | P8: 0 | R8: 1000 | S8: 0 | T8: 450 | U8: 0 | W8: 1000
B9: G7 | C9: 1000 | D9: 55 | E9: 0 | F9: 0 | H9: 50 | I9: 0 | J9: 50 | K9: 0 | M9: 500 | N9: 0 | O9: 500 | P9: 0 | R9: 1000 | S9: 0 | T9: 20 | U9: 0 | W9: 570
B10: G8 | C10: 1000 | D10: 60 | E10: 0 | F10: 0 | H10: 50 | I10: 0 | J10: 50 | K10: 0 | M10: 500 | N10: 0 | O10: 300 | P10: 0 | R10: 1000 | S10: 0 | T10: 650 | U10: 0 | W10: 1000
B11: G9 | C11: 1000 | D11: 800 | E11: 0 | F11: 0 | H11: 0 | I11: 0 | J11: 0 | K11: 0 | M11: 0 | N11: 0 | O11: 0 | P11: 0 | R11: 1000 | S11: 0 | T11: 1000 | U11: 0 | W11: 1000
B12: Power Balance Penalty | C12: 10000 | D12: 9001 | E12: 0 | F12: 0 | H12: 0 | I12: 0 | J12: 0 | K12: 0 | M12: 0 | N12: 0 | O12: 0 | P12: 0 | R12: 0 | S12: 0 | T12: 0 | U12: 0 | W12: 0
B13: Totals | C13: =SUM(C3:C12) -> 68000 | E13: =SUM(E3:E12) -> 52000 | F13: =SUM(F3:F12) -> 1315100 | H13: =SUM(H3:H12) -> 400 | J13: =SUM(J3:J12) -> 270 | K13: =SUM(K3:K12) -> 0 | M13: =SUM(M3:M12) -> 4000 | O13: =SUM(O3:O12) -> 2300 | P13: =SUM(P3:P12) -> 0 | R13: =SUM(R3:R12) -> 58000 | T13: =SUM(T3:T12) -> 3000 | U13: =SUM(U3:U12) -> 0 | W13: =SUM(W3:W12) -> 57570
A15: System Inputs | C15: As an example, change 'Demand' value to 53000 and click solve. The objective function and output prices will update along with the awarded and solution quantities for the 7 tables. The 'Results Summary' tab will summarize the real-time co-optimized solution.
A16: Demand | B16: 52000 | H16: URS Shortage | M16: RRS Shortage | R16: SOR Shortage
A17: URS Requirement | B17: 270 | H17: Demand Curve Qty | I17: Demand Curve Price | J17: Solution Qty | K17: Solution Cost | M17: Demand Curve Qty | N17: Demand Curve Price | O17: Solution Qty | P17: Solution Cost | R17: Demand Curve Qty | S17: Demand Curve Price | T17: Solution Qty | U17: Solution Cost
A18: RRS Requirement | B18: 2300 | H18: 170 | I18: 7000.99 | J18: 0 | K18: =J18*I18 -> 0 | M18: 1830 | N18: 7000.99 | O18: 0 | P18: =O18*N18 -> 0 | R18: 375.000001 | S18: 1425 | T18: 0 | U18: =T18*S18 -> 0
A19: SOR Requirement | B19: 3000 | H19: 10 | I19: 4500 | J19: 0 | K19: =J19*I19 -> 0 | M19: 100 | N19: 4500 | O19: 0 | P19: =O19*N19 -> 0 | R19: 375 | S19: 422 | T19: 0 | U19: =T19*S19 -> 0
H20: 15 | I20: 3500 | J20: 0 | K20: 0 | M20: 100 | N20: 3500 | O20: 0 | P20: 0 | R20: 375 | S20: 139 | T20: 0 | U20: 0
A21: Objective Function | B21: =F13+K13+K26+P13+U13+P26+U26 -> 1315100 | H21: 15 | I21: 2500 | J21: 0 | K21: 0 | M21: 55 | N21: 2500 | O21: 0 | P21: 0 | R21: 375 | S21: 46 | T21: 0 | U21: 0
H22: 15 | I22: 1500 | J22: 0 | K22: 0 | M22: 55 | N22: 1500 | O22: 0 | P22: 0 | R22: 375 | S22: 13 | T22: 0 | U22: 0
A23: Output Prices | H23: 15 | I23: 1000 | J23: 0 | K23: 0 | M23: 55 | N23: 1000 | O23: 0 | P23: 0 | R23: 375 | S23: 3 | T23: 0 | U23: 0
A24: Energy | B24: 40 | H24: 15 | I24: 500 | J24: 0 | K24: 0 | M24: 55 | N24: 500 | O24: 0 | P24: 0 | R24: 375 | S24: 0.6 | T24: 0 | U24: 0
A25: URS | B25: 5 | H25: 15 | I25: 250 | J25: 0 | K25: 0 | M25: 50 | N25: 250 | O25: 0 | P25: 0 | R25: 375 | S25: 0.1 | T25: 0 | U25: 0
A26: RRS | B26: 0 | H26: =SUM(H18:H25) -> 270 | J26: =SUM(J18:J25) -> 0 | K26: =SUM(K18:K25) -> 0 | M26: =SUM(M18:M25) -> 2300 | O26: =SUM(O18:O25) -> 0 | P26: =SUM(P18:P25) -> 0 | R26: =SUM(R18:R25) -> 3000.000001 | T26: =SUM(T18:T25) -> 0 | U26: =SUM(U18:U25) -> 0
A27: SOR | B27: 0
H28: URS Awarded + Shortage Qty | J28: =J13+J26 -> 270 | M28: RRS Awarded + Shortage Qty | O28: =O13+O26 -> 2300 | R28: SOR Awarded + Shortage Qty | T28: =T13+T26 -> 3000

Sheet Results Summary
B1: Awarded MW
B2: Energy | C2: URS | D2: RRS | E2: SOR
A3: G2 | B3: ='Optimization Engine'!E4 -> 1000 | C3: ='Optimization Engine'!J4 -> 0 | D3: ='Optimization Engine'!O3 -> 0 | E3: ='Optimization Engine'!T3 -> 0
A4: G3 | B4: ='Optimization Engine'!E5 -> 980 | C4: ='Optimization Engine'!J5 -> 20 | D4: ='Optimization Engine'!O4 -> 0 | E4: ='Optimization Engine'!T4 -> 0
A5: G4 | B5: ='Optimization Engine'!E6 -> 20 | C5: ='Optimization Engine'!J6 -> 50 | D5: ='Optimization Engine'!O5 -> 0 | E5: ='Optimization Engine'!T5 -> 0
A6: G5 | B6: ='Optimization Engine'!E7 -> 0 | C6: ='Optimization Engine'!J7 -> 50 | D6: ='Optimization Engine'!O6 -> 500 | E6: ='Optimization Engine'!T6 -> 430
A7: G6 | B7: ='Optimization Engine'!E8 -> 0 | C7: ='Optimization Engine'!J8 -> 50 | D7: ='Optimization Engine'!O7 -> 500 | E7: ='Optimization Engine'!T7 -> 450
A8: G7 | B8: ='Optimization Engine'!E9 -> 0 | C8: ='Optimization Engine'!J9 -> 50 | D8: ='Optimization Engine'!O8 -> 500 | E8: ='Optimization Engine'!T8 -> 450
A9: G8 | B9: ='Optimization Engine'!E10 -> 0 | C9: ='Optimization Engine'!J10 -> 50 | D9: ='Optimization Engine'!O9 -> 500 | E9: ='Optimization Engine'!T9 -> 20
A10: G9 | B10: ='Optimization Engine'!E11 -> 0 | C10: ='Optimization Engine'!J11 -> 0 | D10: ='Optimization Engine'!O10 -> 300 | E10: ='Optimization Engine'!T10 -> 650
A11: Award | C11: =SUM(C3:C10) -> 270 | D11: =SUM(D3:D10) -> 2300 | E11: ='Optimization Engine'!T11 -> 1000
A12: Req | C12: 270 | D12: 2300 | E12: ='Optimization Engine'!T12 -> 0
A14: Price | B14: ='Optimization Engine'!$B$24 -> 40 | C14: ='Optimization Engine'!$B$25 -> 5 | D14: ='Optimization Engine'!$B$26 -> 0 | E14: ='Optimization Engine'!$B$27 -> 0

Sheet Answer Report
A1: Microsoft Excel 15.0 Answer Report
A2: Worksheet: [RT Co-Optimization_Scenario v3.xlsm]Optimization Engine
A3: Report Created: 6/28/2017 10:57:20 AM
A4: Result: Label1
A5: Solver Engine
B6: Engine: Simplex LP
B7: Solution Time: 0.109 Seconds.
B8: Iterations: 50 Subproblems: 0
A9: Solver Options
B10: Max Time 100 sec, Iterations 100, Precision 0.000001
B11: Max Subproblems Unlimited, Max Integer Sols Unlimited, Integer Tolerance 0.01%, Solve Without Integer Constraints, Assume NonNegative
A14: Objective Cell ()
B15: Cell | C15: Name | D15: Original Value | E15: Final Value
B16: $B$21 | C16: Objective Function Totals | D16: 1357104.5 | E16: 1315100
A19: Variable Cells
B20: Cell | C20: Name | D20: Original Value | E20: Final Value | F20: Integer
B21: $E$3 | C21: Rest of System Awarded Qty | D21: 50000 | E21: 50000 | F21: Contin
B22: $E$4 | C22: G2 Awarded Qty | D22: 1000 | E22: 1000 | F22: Contin
B23: $E$5 | C23: G3 Awarded Qty | D23: 980 | E23: 980 | F23: Contin
B24: $E$6 | C24: G4 Awarded Qty | D24: 650 | E24: 20 | F24: Contin
B25: $E$7 | C25: G5 Awarded Qty | D25: 370 | E25: 0 | F25: Contin
B26: $E$8 | C26: G6 Awarded Qty | D26: 0 | E26: 0 | F26: Contin
B27: $E$9 | C27: G7 Awarded Qty | D27: 0 | E27: 0 | F27: Contin
B28: $E$10 | C28: G8 Awarded Qty | D28: 0 | E28: 0 | F28: Contin
B29: $E$11 | C29: G9 Awarded Qty | D29: 0 | E29: 0 | F29: Contin
B30: $E$12 | C30: Power Balance Penalty Awarded Qty | D30: 0 | E30: 0 | F30: Contin
B31: $J$3 | C31: Rest of System Awarded Qty | D31: 0 | E31: 0 | F31: Contin
B32: $J$4 | C32: G2 Awarded Qty | D32: 0 | E32: 0 | F32: Contin
B33: $J$5 | C33: G3 Awarded Qty | D33: 20 | E33: 20 | F33: Contin
B34: $J$6 | C34: G4 Awarded Qty | D34: 50 | E34: 50 | F34: Contin
B35: $J$7 | C35: G5 Awarded Qty | D35: 50 | E35: 50 | F35: Contin
B36: $J$8 | C36: G6 Awarded Qty | D36: 50 | E36: 50 | F36: Contin
B37: $J$9 | C37: G7 Awarded Qty | D37: 50 | E37: 50 | F37: Contin
B38: $J$10 | C38: G8 Awarded Qty | D38: 50 | E38: 50 | F38: Contin
B39: $J$11 | C39: G9 Awarded Qty | D39: 0 | E39: 0 | F39: Contin
B40: $J$12 | C40: Power Balance Penalty Awarded Qty | D40: 0 | E40: 0 | F40: Contin
B41: $O$3 | C41: Rest of System Awarded Qty | D41: 0 | E41: 0 | F41: Contin
B42: $O$4 | C42: G2 Awarded Qty | D42: 0 | E42: 0 | F42: Contin
B43: $O$5 | C43: G3 Awarded Qty | D43: 0 | E43: 0 | F43: Contin
B44: $O$6 | C44: G4 Awarded Qty | D44: 300 | E44: 500 | F44: Contin
B45: $O$7 | C45: G5 Awarded Qty | D45: 500 | E45: 500 | F45: Contin
B46: $O$8 | C46: G6 Awarded Qty | D46: 500 | E46: 500 | F46: Contin
B47: $O$9 | C47: G7 Awarded Qty | D47: 500 | E47: 500 | F47: Contin
B48: $O$10 | C48: G8 Awarded Qty | D48: 500 | E48: 300 | F48: Contin
B49: $O$11 | C49: G9 Awarded Qty | D49: 0 | E49: 0 | F49: Contin
B50: $O$12 | C50: Power Balance Penalty Awarded Qty | D50: 0 | E50: 0 | F50: Contin
B51: $T$3 | C51: Rest of System Awarded Qty | D51: 0 | E51: 0 | F51: Contin
B52: $T$4 | C52: G2 Awarded Qty | D52: 0 | E52: 0 | F52: Contin
B53: $T$5 | C53: G3 Awarded Qty | D53: 0 | E53: 0 | F53: Contin
B54: $T$6 | C54: G4 Awarded Qty | D54: 0 | E54: 430 | F54: Contin
B55: $T$7 | C55: G5 Awarded Qty | D55: 80 | E55: 450 | F55: Contin
B56: $T$8 | C56: G6 Awarded Qty | D56: 450 | E56: 450 | F56: Contin
B57: $T$9 | C57: G7 Awarded Qty | D57: 450 | E57: 20 | F57: Contin
B58: $T$10 | C58: G8 Awarded Qty | D58: 450 | E58: 650 | F58: Contin
B59: $T$11 | C59: G9 Awarded Qty | D59: 1000 | E59: 1000 | F59: Contin
B60: $T$12 | C60: Power Balance Penalty Awarded Qty | D60: 0 | E60: 0 | F60: Contin
B61: $J$18 | C61: RRS Requirement Solution Qty | D61: 0 | E61: 0 | F61: Contin
B62: $J$19 | C62: SOR Requirement Solution Qty | D62: 0 | E62: 0 | F62: Contin
B63: $J$20 | C63: Solution Qty | D63: 0 | E63: 0 | F63: Contin
B64: $J$21 | C64: Objective Function Solution Qty | D64: 0 | E64: 0 | F64: Contin
B65: $J$22 | C65: Solution Qty | D65: 0 | E65: 0 | F65: Contin
B66: $J$23 | C66: Output Prices Solution Qty | D66: 0 | E66: 0 | F66: Contin
B67: $J$24 | C67: Energy Solution Qty | D67: 0 | E67: 0 | F67: Contin
B68: $J$25 | C68: URS Solution Qty | D68: 0 | E68: 0 | F68: Contin
B69: $O$18 | C69: RRS Requirement Solution Qty | D69: 0 | E69: 0 | F69: Contin
B70: $O$19 | C70: SOR Requirement Solution Qty | D70: 0 | E70: 0 | F70: Contin
B71: $O$20 | C71: Solution Qty | D71: 0 | E71: 0 | F71: Contin
B72: $O$21 | C72: Objective Function Solution Qty | D72: 0 | E72: 0 | F72: Contin
B73: $O$22 | C73: Solution Qty | D73: 0 | E73: 0 | F73: Contin
B74: $O$23 | C74: Output Prices Solution Qty | D74: 0 | E74: 0 | F74: Contin
B75: $O$24 | C75: Energy Solution Qty | D75: 0 | E75: 0 | F75: Contin
B76: $O$25 | C76: URS Solution Qty | D76: 0 | E76: 0 | F76: Contin
B77: $T$18 | C77: RRS Requirement Solution Qty | D77: 0 | E77: 0 | F77: Contin
B78: $T$19 | C78: SOR Requirement Solution Qty | D78: 0 | E78: 0 | F78: Contin
B79: $T$20 | C79: Solution Qty | D79: 0 | E79: 0 | F79: Contin
B80: $T$21 | C80: Objective Function Solution Qty | D80: 0 | E80: 0 | F80: Contin
B81: $T$22 | C81: Solution Qty | D81: 0 | E81: 0 | F81: Contin
B82: $T$23 | C82: Output Prices Solution Qty | D82: 0 | E82: 0 | F82: Contin
B83: $T$24 | C83: Energy Solution Qty | D83: 195 | E83: 0 | F83: Contin
B84: $T$25 | C84: URS Solution Qty | D84: 375 | E84: 0 | F84: Contin
A87: Constraints
B88: Cell | C88: Name | D88: Cell Value | E88: Formula | F88: Status | G88: Slack
B89: $W$8 | C89: G6 Total Awarded Capacity | D89: 1000 | E89: $W$8<=$C$8 | F89: Binding | G89: 0
B90: $W$5 | C90: G3 Total Awarded Capacity | D90: 1000 | E90: $W$5<=$C$5 | F90: Binding | G90: 0
B91: $W$6 | C91: G4 Total Awarded Capacity | D91: 1000 | E91: $W$6<=$C$6 | F91: Binding | G91: 0
B92: $W$9 | C92: G7 Total Awarded Capacity | D92: 570 | E92: $W$9<=$C$9 | F92: Not Binding | G92: 430
B93: $W$4 | C93: G2 Total Awarded Capacity | D93: 1000 | E93: $W$4<=$C$4 | F93: Binding | G93: 0
B94: $W$11 | C94: G9 Total Awarded Capacity | D94: 1000 | E94: $W$11<=$C$11 | F94: Binding | G94: 0
B95: $W$12 | C95: Power Balance Penalty Total Awarded Capacity | D95: 0 | E95: $W$12<=$C$12 | F95: Not Binding | G95: 10000
B96: $W$3 | C96: Rest of System Total Awarded Capacity | D96: 50000 | E96: $W$3<=$C$3 | F96: Binding | G96: 0
B97: $W$7 | C97: G5 Total Awarded Capacity | D97: 1000 | E97: $W$7<=$C$7 | F97: Binding | G97: 0
B98: $W$10 | C98: G8 Total Awarded Capacity | D98: 1000 | E98: $W$10<=$C$10 | F98: Binding | G98: 0
B99: $T$28 | C99: SOR Awarded + Shortage Qty Solution Qty | D99: 3000 | E99: $T$28=$B$19 | F99: Binding | G99: 0
B100: $O$28 | C100: RRS Awarded + Shortage Qty Solution Qty | D100: 2300 | E100: $O$28=$B$18 | F100: Binding | G100: 0
B101: $E$13 | C101: Totals Awarded Qty | D101: 52000 | E101: $E$13=$B$16 | F101: Binding | G101: 0
B102: $J$28 | C102: URS Awarded + Shortage Qty Solution Qty | D102: 270 | E102: $J$28=$B$17 | F102: Binding | G102: 0
B103: $J$6 | C103: G4 Awarded Qty | D103: 50 | E103: $J$6<=$H$6 | F103: Binding | G103: 0
B104: $J$22 | C104: Solution Qty | D104: 0 | E104: $J$22<=$H$22 | F104: Not Binding | G104: 15
B105: $J$8 | C105: G6 Awarded Qty | D105: 50 | E105: $J$8<=$H$8 | F105: Binding | G105: 0
B106: $O$10 | C106: G8 Awarded Qty | D106: 300 | E106: $O$10<=$M$10 | F106: Not Binding | G106: 200
B107: $J$19 | C107: SOR Requirement Solution Qty | D107: 0 | E107: $J$19<=$H$19 | F107: Not Binding | G107: 10
B108: $O$11 | C108: G9 Awarded Qty | D108: 0 | E108: $O$11<=$M$11 | F108: Binding | G108: 0
B109: $O$12 | C109: Power Balance Penalty Awarded Qty | D109: 0 | E109: $O$12<=$M$12 | F109: Binding | G109: 0
B110: $O$5 | C110: G3 Awarded Qty | D110: 0 | E110: $O$5<=$M$5 | F110: Not Binding | G110: 500
B111: $O$3 | C111: Rest of System Awarded Qty | D111: 0 | E111: $O$3<=$M$3 | F111: Not Binding | G111: 500
B112: $O$4 | C112: G2 Awarded Qty | D112: 0 | E112: $O$4<=$M$4 | F112: Not Binding | G112: 500
B113: $T$6 | C113: G4 Awarded Qty | D113: 430 | E113: $T$6<=$R$6 | F113: Not Binding | G113: 570
B114: $T$8 | C114: G6 Awarded Qty | D114: 450 | E114: $T$8<=$R$8 | F114: Not Binding | G114: 550
B115: $T$9 | C115: G7 Awarded Qty | D115: 20 | E115: $T$9<=$R$9 | F115: Not Binding | G115: 980
B116: $T$7 | C116: G5 Awarded Qty | D116: 450 | E116: $T$7<=$R$7 | F116: Not Binding | G116: 550
B117: $O$6 | C117: G4 Awarded Qty | D117: 500 | E117: $O$6<=$M$6 | F117: Binding | G117: 0
B118: $T$21 | C118: Objective Function Solution Qty | D118: 0 | E118: $T$21<=$R$21 | F118: Not Binding | G118: 375
B119: $T$3 | C119: Rest of System Awarded Qty | D119: 0 | E119: $T$3<=$R$3 | F119: Not Binding | G119: 50000
B120: $T$5 | C120: G3 Awarded Qty | D120: 0 | E120: $T$5<=$R$5 | F120: Not Binding | G120: 1000
B121: $T$24 | C121: Energy Solution Qty | D121: 0 | E121: $T$24<=$R$24 | F121: Not Binding | G121: 375
B122: $T$4 | C122: G2 Awarded Qty | D122: 0 | E122: $T$4<=$R$4 | F122: Not Binding | G122: 1000
B123: $T$25 | C123: URS Solution Qty | D123: 0 | E123: $T$25<=$R$25 | F123: Not Binding | G123: 375
B124: $T$22 | C124: Solution Qty | D124: 0 | E124: $T$22<=$R$22 | F124: Not Binding | G124: 375
B125: $T$23 | C125: Output Prices Solution Qty | D125: 0 | E125: $T$23<=$R$23 | F125: Not Binding | G125: 375
B126: $T$20 | C126: Solution Qty | D126: 0 | E126: $T$20<=$R$20 | F126: Not Binding | G126: 375
B127: $T$12 | C127: Power Balance Penalty Awarded Qty | D127: 0 | E127: $T$12<=$R$12 | F127: Binding | G127: 0
B128: $T$18 | C128: RRS Requirement Solution Qty | D128: 0 | E128: $T$18<=$R$18 | F128: Not Binding | G128: 375.000001
B129: $T$19 | C129: SOR Requirement Solution Qty | D129: 0 | E129: $T$19<=$R$19 | F129: Not Binding | G129: 375
B130: $O$20 | C130: Solution Qty | D130: 0 | E130: $O$20<=$M$20 | F130: Not Binding | G130: 100
B131: $O$8 | C131: G6 Awarded Qty | D131: 500 | E131: $O$8<=$M$8 | F131: Binding | G131: 0
B132: $O$9 | C132: G7 Awarded Qty | D132: 500 | E132: $O$9<=$M$9 | F132: Binding | G132: 0
B133: $O$25 | C133: URS Solution Qty | D133: 0 | E133: $O$25<=$M$25 | F133: Not Binding | G133: 50
B134: $O$7 | C134: G5 Awarded Qty | D134: 500 | E134: $O$7<=$M$7 | F134: Binding | G134: 0
B135: $T$10 | C135: G8 Awarded Qty | D135: 650 | E135: $T$10<=$R$10 | F135: Not Binding | G135: 350
B136: $T$11 | C136: G9 Awarded Qty | D136: 1000 | E136: $T$11<=$R$11 | F136: Binding | G136: 0
B137: $O$24 | C137: Energy Solution Qty | D137: 0 | E137: $O$24<=$M$24 | F137: Not Binding | G137: 55
B138: $O$23 | C138: Output Prices Solution Qty | D138: 0 | E138: $O$23<=$M$23 | F138: Not Binding | G138: 55
B139: $O$22 | C139: Solution Qty | D139: 0 | E139: $O$22<=$M$22 | F139: Not Binding | G139: 55
B140: $O$21 | C140: Objective Function Solution Qty | D140: 0 | E140: $O$21<=$M$21 | F140: Not Binding | G140: 55
B141: $O$19 | C141: SOR Requirement Solution Qty | D141: 0 | E141: $O$19<=$M$19 | F141: Not Binding | G141: 100
B142: $O$18 | C142: RRS Requirement Solution Qty | D142: 0 | E142: $O$18<=$M$18 | F142: Not Binding | G142: 1830
B143: $J$9 | C143: G7 Awarded Qty | D143: 50 | E143: $J$9<=$H$9 | F143: Binding | G143: 0
B144: $J$7 | C144: G5 Awarded Qty | D144: 50 | E144: $J$7<=$H$7 | F144: Binding | G144: 0
B145: $J$5 | C145: G3 Awarded Qty | D145: 20 | E145: $J$5<=$H$5 | F145: Not Binding | G145: 30
B146: $J$24 | C146: Energy Solution Qty | D146: 0 | E146: $J$24<=$H$24 | F146: Not Binding | G146: 15
B147: $J$4 | C147: G2 Awarded Qty | D147: 0 | E147: $J$4<=$H$4 | F147: Not Binding | G147: 50
B148: $J$3 | C148: Rest of System Awarded Qty | D148: 0 | E148: $J$3<=$H$3 | F148: Not Binding | G148: 50
B149: $E$5 | C149: G3 Awarded Qty | D149: 980 | E149: $E$5<=$C$5 | F149: Not Binding | G149: 20
B150: $J$12 | C150: Power Balance Penalty Awarded Qty | D150: 0 | E150: $J$12<=$H$12 | F150: Binding | G150: 0
B151: $J$10 | C151: G8 Awarded Qty | D151: 50 | E151: $J$10<=$H$10 | F151: Binding | G151: 0
B152: $E$8 | C152: G6 Awarded Qty | D152: 0 | E152: $E$8<=$C$8 | F152: Not Binding | G152: 1000
B153: $E$6 | C153: G4 Awarded Qty | D153: 20 | E153: $E$6<=$C$6 | F153: Not Binding | G153: 980
B154: $E$9 | C154: G7 Awarded Qty | D154: 0 | E154: $E$9<=$C$9 | F154: Not Binding | G154: 1000
B155: $J$18 | C155: RRS Requirement Solution Qty | D155: 0 | E155: $J$18<=$H$18 | F155: Not Binding | G155: 170
B156: $J$11 | C156: G9 Awarded Qty | D156: 0 | E156: $J$11<=$H$11 | F156: Binding | G156: 0
B157: $J$20 | C157: Solution Qty | D157: 0 | E157: $J$20<=$H$20 | F157: Not Binding | G157: 15
B158: $J$21 | C158: Objective Function Solution Qty | D158: 0 | E158: $J$21<=$H$21 | F158: Not Binding | G158: 15
B159: $E$7 | C159: G5 Awarded Qty | D159: 0 | E159: $E$7<=$C$7 | F159: Not Binding | G159: 1000
B160: $J$25 | C160: URS Solution Qty | D160: 0 | E160: $J$25<=$H$25 | F160: Not Binding | G160: 15
B161: $J$23 | C161: Output Prices Solution Qty | D161: 0 | E161: $J$23<=$H$23 | F161: Not Binding | G161: 15
B162: $E$4 | C162: G2 Awarded Qty | D162: 1000 | E162: $E$4<=$C$4 | F162: Binding | G162: 0
B163: $E$10 | C163: G8 Awarded Qty | D163: 0 | E163: $E$10<=$C$10 | F163: Not Binding | G163: 1000
B164: $E$12 | C164: Power Balance Penalty Awarded Qty | D164: 0 | E164: $E$12<=$C$12 | F164: Not Binding | G164: 10000
B165: $E$11 | C165: G9 Awarded Qty | D165: 0 | E165: $E$11<=$C$11 | F165: Not Binding | G165: 1000
B166: $E$3 | C166: Rest of System Awarded Qty | D166: 50000 | E166: $E$3<=$C$3 | F166: Binding | G166: 0

Sheet Sensitivity Report
A1: Microsoft Excel 15.0 Sensitivity Report
A2: Worksheet: [RT Co-Optimization_Scenario v3.xlsm]Optimization Engine
A3: Report Created: 6/28/2017 10:57:21 AM
A6: Variable Cells
D7: Final | E7: Reduced | F7: Objective | G7: Allowable | H7: Allowable
B8: Cell | C8: Name | D8: Value | E8: Cost | F8: Coefficient | G8: Increase | H8: Decrease
B9: $E$3 | C9: Rest of System Awarded Qty | D9: 50000 | E9: -10 | F9: 25 | G9: 10 | H9: 1e+30
B10: $E$4 | C10: G2 Awarded Qty | D10: 1000 | E10: 0 | F10: 30 | G10: 5 | H10: 1e+30
B11: $E$5 | C11: G3 Awarded Qty | D11: 980 | E11: 0 | F11: 35 | G11: 5 | H11: 5
B12: $E$6 | C12: G4 Awarded Qty | D12: 20 | E12: 0 | F12: 40 | G12: 5 | H12: 5
B13: $E$7 | C13: G5 Awarded Qty | D13: 0 | E13: 5 | F13: 45 | G13: 1e+30 | H13: 5
B14: $E$8 | C14: G6 Awarded Qty | D14: 0 | E14: 10 | F14: 50 | G14: 1e+30 | H14: 10
B15: $E$9 | C15: G7 Awarded Qty | D15: 0 | E15: 15 | F15: 55 | G15: 1e+30 | H15: 15
B16: $E$10 | C16: G8 Awarded Qty | D16: 0 | E16: 20 | F16: 60 | G16: 1e+30 | H16: 20
B17: $E$11 | C17: G9 Awarded Qty | D17: 0 | E17: 760 | F17: 800 | G17: 1e+30 | H17: 760
B18: $E$12 | C18: Power Balance Penalty Awarded Qty | D18: 0 | E18: 8961 | F18: 9001 | G18: 1e+30 | H18: 8961
B19: $J$3 | C19: Rest of System Awarded Qty | D19: 0 | E19: 0 | F19: 0 | G19: 5 | H19: 10
B20: $J$4 | C20: G2 Awarded Qty | D20: 0 | E20: 5 | F20: 0 | G20: 1e+30 | H20: 5
B21: $J$5 | C21: G3 Awarded Qty | D21: 20 | E21: 0 | F21: 0 | G21: 5 | H21: 5
B22: $J$6 | C22: G4 Awarded Qty | D22: 50 | E22: -5 | F22: 0 | G22: 5 | H22: 1e+30
B23: $J$7 | C23: G5 Awarded Qty | D23: 50 | E23: -5 | F23: 0 | G23: 5 | H23: 1e+30
B24: $J$8 | C24: G6 Awarded Qty | D24: 50 | E24: -5 | F24: 0 | G24: 5 | H24: 1e+30
B25: $J$9 | C25: G7 Awarded Qty | D25: 50 | E25: -5 | F25: 0 | G25: 5 | H25: 1e+30
B26: $J$10 | C26: G8 Awarded Qty | D26: 50 | E26: -5 | F26: 0 | G26: 5 | H26: 1e+30
B27: $J$11 | C27: G9 Awarded Qty | D27: 0 | E27: -5 | F27: 0 | G27: 1e+30 | H27: 5
B28: $J$12 | C28: Power Balance Penalty Awarded Qty | D28: 0 | E28: -5 | F28: 0 | G28: 1e+30 | H28: 5
B29: $O$3 | C29: Rest of System Awarded Qty | D29: 0 | E29: 5 | F29: 0 | G29: 1e+30 | H29: 5
B30: $O$4 | C30: G2 Awarded Qty | D30: 0 | E30: 10 | F30: 0 | G30: 1e+30 | H30: 10
B31: $O$5 | C31: G3 Awarded Qty | D31: 0 | E31: 5 | F31: 0 | G31: 1e+30 | H31: 5
B32: $O$6 | C32: G4 Awarded Qty | D32: 500 | E32: 0 | F32: 0 | G32: 0 | H32: 1e+30
B33: $O$7 | C33: G5 Awarded Qty | D33: 500 | E33: 0 | F33: 0 | G33: 0 | H33: 1e+30
B34: $O$8 | C34: G6 Awarded Qty | D34: 500 | E34: 0 | F34: 0 | G34: 0 | H34: 1e+30
B35: $O$9 | C35: G7 Awarded Qty | D35: 500 | E35: 0 | F35: 0 | G35: 0 | H35: 1e+30
B36: $O$10 | C36: G8 Awarded Qty | D36: 300 | E36: 0 | F36: 0 | G36: 0 | H36: 0
B37: $O$11 | C37: G9 Awarded Qty | D37: 0 | E37: 0 | F37: 0 | G37: 1e+30 | H37: 0
B38: $O$12 | C38: Power Balance Penalty Awarded Qty | D38: 0 | E38: 0 | F38: 0 | G38: 1e+30 | H38: 0
B39: $T$3 | C39: Rest of System Awarded Qty | D39: 0 | E39: 5 | F39: 0 | G39: 1e+30 | H39: 5
B40: $T$4 | C40: G2 Awarded Qty | D40: 0 | E40: 10 | F40: 0 | G40: 1e+30 | H40: 10
B41: $T$5 | C41: G3 Awarded Qty | D41: 0 | E41: 5 | F41: 0 | G41: 1e+30 | H41: 5
B42: $T$6 | C42: G4 Awarded Qty | D42: 430 | E42: 0 | F42: 0 | G42: 0 | H42: 0
B43: $T$7 | C43: G5 Awarded Qty | D43: 450 | E43: 0 | F43: 0 | G43: 0 | H43: 0
B44: $T$8 | C44: G6 Awarded Qty | D44: 450 | E44: 0 | F44: 0 | G44: 0 | H44: 0
B45: $T$9 | C45: G7 Awarded Qty | D45: 20 | E45: 0 | F45: 0 | G45: 0 | H45: 0
B46: $T$10 | C46: G8 Awarded Qty | D46: 650 | E46: 0 | F46: 0 | G46: 0 | H46: 0
B47: $T$11 | C47: G9 Awarded Qty | D47: 1000 | E47: 0 | F47: 0 | G47: 0 | H47: 1e+30
B48: $T$12 | C48: Power Balance Penalty Awarded Qty | D48: 0 | E48: 0 | F48: 0 | G48: 1e+30 | H48: 0
B49: $J$18 | C49: RRS Requirement Solution Qty | D49: 0 | E49: 6995.99 | F49: 7000.99 | G49: 1e+30 | H49: 6995.99
B50: $J$19 | C50: SOR Requirement Solution Qty | D50: 0 | E50: 4495 | F50: 4500 | G50: 1e+30 | H50: 4495
B51: $J$20 | C51: Solution Qty | D51: 0 | E51: 3495 | F51: 3500 | G51: 1e+30 | H51: 3495
B52: $J$21 | C52: Objective Function Solution Qty | D52: 0 | E52: 2495 | F52: 2500 | G52: 1e+30 | H52: 2495
B53: $J$22 | C53: Solution Qty | D53: 0 | E53: 1495 | F53: 1500 | G53: 1e+30 | H53: 1495
B54: $J$23 | C54: Output Prices Solution Qty | D54: 0 | E54: 995 | F54: 1000 | G54: 1e+30 | H54: 995
B55: $J$24 | C55: Energy Solution Qty | D55: 0 | E55: 495 | F55: 500 | G55: 1e+30 | H55: 495
B56: $J$25 | C56: URS Solution Qty | D56: 0 | E56: 245 | F56: 250 | G56: 1e+30 | H56: 245
B57: $O$18 | C57: RRS Requirement Solution Qty | D57: 0 | E57: 7000.99 | F57: 7000.99 | G57: 1e+30 | H57: 7000.99
B58: $O$19 | C58: SOR Requirement Solution Qty | D58: 0 | E58: 4500 | F58: 4500 | G58: 1e+30 | H58: 4500
B59: $O$20 | C59: Solution Qty | D59: 0 | E59: 3500 | F59: 3500 | G59: 1e+30 | H59: 3500
B60: $O$21 | C60: Objective Function Solution Qty | D60: 0 | E60: 2500 | F60: 2500 | G60: 1e+30 | H60: 2500
B61: $O$22 | C61: Solution Qty | D61: 0 | E61: 1500 | F61: 1500 | G61: 1e+30 | H61: 1500
B62: $O$23 | C62: Output Prices Solution Qty | D62: 0 | E62: 1000 | F62: 1000 | G62: 1e+30 | H62: 1000
B63: $O$24 | C63: Energy Solution Qty | D63: 0 | E63: 500 | F63: 500 | G63: 1e+30 | H63: 500
B64: $O$25 | C64: URS Solution Qty | D64: 0 | E64: 250 | F64: 250 | G64: 1e+30 | H64: 250
B65: $T$18 | C65: RRS Requirement Solution Qty | D65: 0 | E65: 1425 | F65: 1425 | G65: 1e+30 | H65: 1425
B66: $T$19 | C66: SOR Requirement Solution Qty | D66: 0 | E66: 422 | F66: 422 | G66: 1e+30 | H66: 422
B67: $T$20 | C67: Solution Qty | D67: 0 | E67: 139 | F67: 139 | G67: 1e+30 | H67: 139
B68: $T$21 | C68: Objective Function Solution Qty | D68: 0 | E68: 46 | F68: 46 | G68: 1e+30 | H68: 46
B69: $T$22 | C69: Solution Qty | D69: 0 | E69: 13 | F69: 13 | G69: 1e+30 | H69: 13
B70: $T$23 | C70: Output Prices Solution Qty | D70: 0 | E70: 3 | F70: 3 | G70: 1e+30 | H70: 3
B71: $T$24 | C71: Energy Solution Qty | D71: 0 | E71: 0.6 | F71: 0.6 | G71: 1e+30 | H71: 0.6
B72: $T$25 | C72: URS Solution Qty | D72: 0 | E72: 0.1 | F72: 0.1 | G72: 1e+30 | H72: 0.1
A74: Constraints
D75: Final | E75: Shadow | F75: Constraint | G75: Allowable | H75: Allowable
B76: Cell | C76: Name | D76: Value | E76: Price | F76: R.H. Side | G76: Increase | H76: Decrease
B77: $W$8 | C77: G6 Total Awarded Capacity | D77: 1000 | E77: 0 | F77: 1000 | G77: 20 | H77: 430
B78: $W$5 | C78: G3 Total Awarded Capacity | D78: 1000 | E78: -5 | F78: 1000 | G78: 20 | H78: 430
B79: $W$6 | C79: G4 Total Awarded Capacity | D79: 1000 | E79: 0 | F79: 1000 | G79: 20 | H79: 430
B80: $W$9 | C80: G7 Total Awarded Capacity | D80: 570 | E80: 0 | F80: 1000 | G80: 1e+30 | H80: 430
B81: $W$4 | C81: G2 Total Awarded Capacity | D81: 1000 | E81: -10 | F81: 1000 | G81: 0 | H81: 430
B82: $W$11 | C82: G9 Total Awarded Capacity | D82: 1000 | E82: 0 | F82: 1000 | G82: 1e+30 | H82: 0
B83: $W$12 | C83: Power Balance Penalty Total Awarded Capacity | D83: 0 | E83: 0 | F83: 10000 | G83: 1e+30 | H83: 10000
B84: $W$3 | C84: Rest of System Total Awarded Capacity | D84: 50000 | E84: -5 | F84: 50000 | G84: 20 | H84: 0
B85: $W$7 | C85: G5 Total Awarded Capacity | D85: 1000 | E85: 0 | F85: 1000 | G85: 20 | H85: 430
B86: $W$10 | C86: G8 Total Awarded Capacity | D86: 1000 | E86: 0 | F86: 1000 | G86: 20 | H86: 430
B87: $T$28 | C87: SOR Awarded + Shortage Qty Solution Qty | D87: 3000 | E87: 0 | F87: 3000 | G87: 430 | H87: 20
B88: $O$28 | C88: RRS Awarded + Shortage Qty Solution Qty | D88: 2300 | E88: 0 | F88: 2300 | G88: 200 | H88: 20
B89: $E$13 | C89: Totals Awarded Qty | D89: 52000 | E89: 40 | F89: 52000 | G89: 430 | H89: 20
B90: $J$28 | C90: URS Awarded + Shortage Qty Solution Qty | D90: 270 | E90: 5 | F90: 270 | G90: 30 | H90: 20
